{"text_format":"1","workbook":"xlsx","n_sheets":24,"sheets":["Inicio","Resumen","Resoluciones","Definiciones","Gráfico1","Gráfico2","Gráfico3","Gráfico4","Gráfico5","Gráfico6","1.Abonados","Gráfico1 TPP","Gráfico2 TTP","Gráfico3 TPP","Gráfico4 TPP","Gráfico5 TPP","Gráfico6 TPP","2.TelPubpre","Gráfico1 CPR","Gráfico2 CPR","Gráfico3 CPR","Gráfico4 CPR","Gráfico5 CPR","3. CabpurRur"],"not_rendered":{"charts":20,"images":8,"macros":1,"external_links":0,"defined_names":0,"comments":0,"pivot_tables":0},"unopened":[],"bounds":{"document_bytes":16777216,"sheet_cells":100000,"rows_first":2000,"rows_last":500,"rows_between":2000,"halvings":0,"cell_chars":16384,"cell_head_chars":4096},"cells_cut":0,"cells_raw":0,"read":"whole","date_system":"1900"}

{"sheet":"Inicio","index":0,"n_rows":20,"n_cols":3,"rows_kept":20,"cut":false,"hidden":false,"merged":[[7,1,7,2]]}
[]
[null,"      Servicio de Telefonía Fija"]
[null,"        Plan de Expansión "]
[]
[]
[]
[]
[null,"      Fecha de publicación: noviembre de 2013"]
[]
[]
[]
[]
[]
[null,null,"Se presenta información relacionada con el Plan Anual de Expansión de los Concesionarios del Servicio de Telefonía Fija."]
[]
[null,null,"El Plan Anual de Expansión determina el crecimiento de la red de un Concesionario a través de la medición de tres parámetros: (1) Urbanos (Instalación de Líneas Nuevas), (2) Rurales (Instalación de Teléfonos Públicos de Prepago) y (3) Servicio Público (Instalación de Cabinas Públicas Rurales). "]
[]
[null,null,"1. Tabla Resumen de Metas y Cumplimientos de todos los Planes de Expansión de las operadoras de Telefonía Fija"]
[null,null,"2. Documentos que aprueban los Planes Anuales de Expansión"]
[null,null,"3. Definiciones de los parámetros del Plan de Expansión"]

{"sheet":"Resumen","index":1,"n_rows":122,"n_cols":15,"rows_kept":122,"cut":false,"hidden":false,"merged":[[118,0,118,12],[97,1,112,1],[12,0,12,13],[97,0,112,0],[45,1,59,1],[45,2,59,2],[97,2,112,2],[15,0,29,0],[15,1,29,1],[15,2,29,2],[30,0,44,0],[30,1,44,1],[81,0,96,0],[81,1,96,1],[81,2,96,2],[30,2,44,2],[7,1,7,2],[62,0,62,12],[45,0,59,0],[65,0,80,0],[65,1,80,1],[65,2,80,2]]}
[]
[null,"      Servicio de Telefonía Fija"]
[null,"        Plan de Expansión - Cumplimiento"]
[]
[]
[]
[]
[null,"      Fecha de publicación: noviembre de 2013"]
[null,null,null,null,null,null,null,null,null,null,null,null,null,null,900384]
[]
[]
[]
["PLAN DE EXPANSIÓN DE TELEFONÍA FIJA - CUMPLIMIENTO"]
[]
["No.","PARÁMETROS","UNIDAD","AÑO","CNT E.P. \n(ex-Andinatel)","CNT E.P. \n(ex-Pacifictel)","CNT E.P.","ETAPA E.P.","Linkotel S.A.","Ecuador \ntelecom S.A.","SETEL S.A.","Total \npor año","Total \nacumulado","Grado Crecimiento"]
[1,"Instalación de Abonados ","Líneas \nNuevas",1998,47170,59029,null,null,"*",null,null,{"$f":"SUM(E16:K16)","v":106199},{"$f":"+L16","v":106199}]
[null,null,null,1999,61914,40046,null,null,"*",null,null,101960,{"$f":"+M16+L17","v":208159},{"$f":"+L17/M16","v":0.96008436990932122}]
[null,null,null,2000,74806,44214,null,null,"*",null,null,119020,327179,{"$f":"+L18/M17","v":0.57177446086885508}]
[null,null,null,2001,95992,49494,null,null,"*",null,null,145486,472665,0.44466790350236413]
[null,null,null,2002,109152,45386,null,null,"*",null,null,154538,627203,0.3269503771169856]
[null,null,null,2003,118262,35268,null,null,"*",null,null,153530,780733,0.24478518119332976]
[null,null,null,2004,77703,49515,null,null,"*",null,null,127218,907951,0.16294687172183064]
[null,null,null,2005,41465,28865,null,null,859,null,null,71189,979140,7.8406213551171819E-2]
[null,null,null,2006,56664,35614,null,null,1700,null,null,93978,1073118,9.5980145842269743E-2]
[null,null,null,2007,24593,27166,null,null,798,null,null,52557,1125675,4.8975974683119657E-2]
[null,null,null,2008,107206,5023,null,null,1211,null,null,113440,{"$f":"+M25+L26","v":1239115},{"$f":"+L26/M25","v":0.1007750905012548}]
[null,null,null,2009,null,null,78663,null,293,null,null,78956,{"$f":"+M25+L27","v":1204631},{"$f":"+L27/M25","v":7.0141026495213976E-2}]
[null,null,null,2010,null,null,94414,null,936,8297,null,103647]
[null,null,null,2011,null,null,152830,5338,442,35153,10862]
[null,null,null,2012,null,null,170248,10054,38,41836,12143]
[2,"Instalación de Teléfonos Públicos de Prepago","Aparatos",1998,5790,1110,null,null,"*",null,null,{"$f":"SUM(E31:K31)","v":6900},{"$f":"+L31","v":6900}]
[null,null,null,1999,0,400,null,null,"*",null,null,400,{"$f":"+M31+L32","v":7300},{"$f":"+L32/M31","v":5.7971014492753624E-2}]
[null,null,null,2000,0,475,null,null,"*",null,null,475,7775,6.5068493150684928E-2]
[null,null,null,2001,233,450,null,null,"*",null,null,683,8458,8.7845659163987136E-2]
[null,null,null,2002,2053,296,null,null,"*",null,null,2349,10807,0.27772523055095766]
[null,null,null,2003,1835,1109,null,null,"*",null,null,2944,13751,0.27241602664939391]
[null,null,null,2004,2684,1787,null,null,"*",null,null,4471,18222,0.32513998981892228]
[null,null,null,2005,1187,217,null,null,"*",null,null,1404,19626,7.7049720118538029E-2]
[null,null,null,2006,410,157,null,null,10,null,null,577,20203,2.9399775807602162E-2]
[null,null,null,2007,172,254,null,null,57,null,null,483,20686,2.3907340493986042E-2]
[null,null,null,2008,534,138,null,null,34,null,null,706,{"$f":"+M40+L41","v":21392},{"$f":"+L41/M40","v":3.4129362854104228E-2}]
[null,null,null,2009,null,null,474,null,0,null,null,474,{"$f":"+M40+L42","v":21160},{"$f":"+L42/M40","v":2.2914048148506234E-2}]
[null,null,null,2010,null,null,488,null,0,608,null,{"$f":"SUM(E43:K43)","v":1096},{"$f":"+M40+L43","v":21782},{"$f":"+L43/M40","v":5.2982693609204295E-2}]
[null,null,null,2011,null,null,824,0,0,1783,1417]
[null,null,null,2012,null,null,1202,0,0,2244,1791]
[3,"Instalación de Cabinas Públicas Rurales ","Poblaciones",1998,81,154,null,null,"*",null,null,235,{"$f":"+L46","v":235}]
[null,null,null,1999,72,139,null,null,"*",null,null,211,{"$f":"M46+L47","v":446},0.89787234042553188]
[null,null,null,2000,86,65,null,null,"*",null,null,151,{"$f":"M47+L48","v":597},0.33856502242152464]
[null,null,null,2001,40,75,null,null,"*",null,null,115,712,0.19262981574539365]
[null,null,null,2002,96,287,null,null,"*",null,null,383,1095,0.5379213483146067]
[null,null,null,2003,55,77,null,null,"*",null,null,132,1227,0.12054794520547946]
[null,null,null,2004,90,91,null,null,"*",null,null,181,1408,0.14751426242868787]
[null,null,null,2005,83,33,null,null,"*",null,null,116,1524,8.2386363636363633E-2]
[null,null,null,2006,22,13,null,null,2,null,null,37,1561,2.4278215223097113E-2]
[null,null,null,2007,11,8,null,null,22,null,null,41,1602,2.626521460602178E-2]
[null,null,null,2008,11,"N.R.",null,null,2,null,null,13,{"$f":"M55+L56","v":1615},{"$f":"+L56/M55","v":8.1148564294631718E-3}]
[null,null,null,2009,null,null,null,null,0,null,null,{"$f":"SUM(E57:K57)","v":0},{"$f":"M54+L57","v":1561},{"$f":"+L57/M54","v":0}]
[null,null,null,2010,null,null,null,null,1,null,null,{"$f":"SUM(E58:K58)","v":1}]
[null,null,null,2011,null,null,null,null,0,null,null,{"$f":"SUM(E59:K59)","v":0},{"$f":"M55+L59","v":1602},{"$f":"+L59/M55","v":0}]
[null,null,null,2012,null,null,null,null,0,null,null,0,{"$f":"M56+L60","v":1615},{"$f":"+L60/M56","v":0}]
[]
[]
["PLAN DE EXPANSIÓN DE TELEFONÍA FIJA - METAS"]
[]
["No.","PARÁMETROS","UNIDAD","AÑO","CNT E.P. \n(ex-Andinatel)","CNT E.P. \n(ex-Pacifictel)","CNT E.P.","ETAPA E.P.","Linkotel S.A.","Ecuador \ntelecom S.A.","SETEL S.A.","Total \npor año","Total \nacumulado"]
[1,"Instalación de Abonados ","Líneas \nNuevas",1998,48000,55000,null,null,"*",null,null,{"$f":"SUM(E66:K66)","v":103000},{"$f":"+L66","v":103000}]
[null,null,null,1999,42000,42000,null,null,"*",null,null,84000,{"$f":"+M66+L67","v":187000}]
[null,null,null,2000,42000,42000,null,null,"*",null,null,84000,271000]
[null,null,null,2001,90000,90000,null,null,"*",null,null,180000,451000]
[null,null,null,2002,111400,111400,null,null,"*",null,null,222800,673800]
[null,null,null,2003,80000,60000,null,null,"*",null,null,140000,813800]
[null,null,null,2004,60000,70000,null,null,"*",null,null,130000,943800]
[null,null,null,2005,50000,5000,null,null,850,null,null,55850,999650]
[null,null,null,2006,40000,25000,null,null,1700,null,null,66700,1066350]
[null,null,null,2007,13500,30000,null,null,{"$f":"100+150+200+250","v":700},null,null,44200,1110550]
[null,null,null,2008,60000,36000,null,null,1400,null,null,97400,1207950]
[null,null,null,2009,null,null,40000,null,1400,null,null,41400,1249350]
[null,null,null,2010,null,null,60000,null,2075,6991,null,69066,1318416]
[null,null,null,2011,null,null,80000,3000,2650,21897,10750,118297,{"$f":"+M77+L79","v":1367647}]
[null,null,null,2012,null,null,100000,5000,2650,21897,14340,{"$f":"SUM(E80:K80)","v":143887},{"$f":"+M77+L80","v":1393237}]
[null,null,null,2013,null,null,100000,7000,2650,40153,25000,174803,{"$f":"+M78+L81","v":1493219}]
[2,"Instalación de Teléfonos Públicos de Prepago","Aparatos",1998,3000,3000,null,null,"*",null,null,6000,{"$f":"+L82","v":6000}]
[null,null,null,1999,400,400,null,null,"*",null,null,800,{"$f":"+M82+L83","v":6800}]
[null,null,null,2000,500,500,null,null,"*",null,null,1000,7800]
[null,null,null,2001,800,800,null,null,"*",null,null,1600,9400]
[null,null,null,2002,2000,10000,null,null,"*",null,null,12000,21400]
[null,null,null,2003,2000,1008,null,null,"*",null,null,3008,24408]
[null,null,null,2004,1500,2000,null,null,"*",null,null,3500,27908]
[null,null,null,2005,1000,500,null,null,"*",null,null,1500,29408]
[null,null,null,2006,300,500,null,null,10,null,null,810,30218]
[null,null,null,2007,100,16,null,null,{"$f":"11+13+15+17","v":56},null,null,172,30390]
[null,null,null,2008,150,240,null,null,48,null,null,438,30828]
[null,null,null,2009,null,null,300,null,48,null,null,348,{"$f":"+M92+L93","v":31176}]
[null,null,null,2010,null,null,390,null,52,70,null,512,{"$f":"+M93+L94","v":31688}]
[null,null,null,2011,null,null,390,0,52,219,107,768,{"$f":"+M94+L95","v":32456}]
[null,null,null,2012,null,null,400,0,52,219,143,{"$f":"SUM(E96:K96)","v":814},{"$f":"+M94+L96","v":32502}]
[null,null,null,2013,null,null,200,0,52,400,250,902,{"$f":"+M95+L97","v":33358}]
[3,"Instalación de Cabinas Públicas Rurales ","Poblaciones",1998,50,50,null,null,"*",null,null,100,{"$f":"+L98","v":100}]
[null,null,null,1999,55,55,null,null,"*",null,null,110,{"$f":"+M98+L99","v":210}]
[null,null,null,2000,55,55,null,null,"*",null,null,110,320]
[null,null,null,2001,50,50,null,null,"*",null,null,100,420]
[null,null,null,2002,90,90,null,null,"*",null,null,180,600]
[null,null,null,2003,40,40,null,null,"*",null,null,80,680]
[null,null,null,2004,20,40,null,null,"*",null,null,60,740]
[null,null,null,2005,20,40,null,null,"*",null,null,60,800]
[null,null,null,2006,15,40,null,null,2,null,null,57,857]
[null,null,null,2007,5,20,null,null,20,null,null,45,902]
[null,null,null,2008,8,20,null,null,4,null,null,32,934]
[null,null,null,2009,null,null,0,null,4,null,null,4,{"$f":"M108+L109","v":938}]
[null,null,null,2010,null,null,0,null,4,null,null,4,{"$f":"M109+L110","v":942}]
[null,null,null,2011,null,null,0,0,4,0,0,4,{"$f":"M110+L111","v":946}]
[null,null,null,2012,null,null,0,0,4,0,0,{"$f":"SUM(E112:K112)","v":4},{"$f":"M110+L112","v":946}]
[null,null,null,2013,null,null,0,0,4,0,0,4,{"$f":"M111+L113","v":950}]
[]
["Notas:"]
[]
["1. META: Valores a ser alcanzados por el Concesionario, mismos que son aprobados por el CONATEL mediante Resoluciones emitidas anualmente."]
["2. CUMPLIMIENTO: Valores alcanzados por el Concesionario y reportados por la Superintendencia de Telecomunicaciones"]
["3. Para CUMPLIMIENTO del año 2008 de la CNT (Pacifictel) se consideraron los cumplimientos del I y II trimestres de 2008"]
["4. * Periodos en los cuales estas empresas no proveían servicio "]
["5. ** Por definir"]
["6. N.R.: dato no reportado"]

{"sheet":"Resoluciones","index":2,"n_rows":32,"n_cols":9,"rows_kept":32,"cut":false,"hidden":false,"merged":[[7,1,7,2],[26,1,26,2],[33,7,37,7],[33,8,37,8],[20,8,26,8],[22,1,22,2],[23,1,23,2],[18,5,23,5],[19,4,23,4],[24,1,24,2],[18,6,24,6],[25,1,25,2],[19,7,25,7]]}
[]
[null,"      Servicio de Telefonía Fija"]
[null,"        Plan de Expansión - Documentos"]
[]
[]
[]
[]
[null,"      Fecha de publicación: noviembre de 2013"]
[]
[]
[]
["AÑO","CNT S.A. (ex-Andinatel)","CNT S.A. (ex-Pacifictel)","Linkotel S.A.","Setel S.A.**","Ecuadortelecom S.A.**","Etapa E.P. / Etapatelecom S.A.**","Global Crossing S.A.**","Grupo Coripar S.A.**"]
[1999,"273-20-CONATEL-99 (17-Ago-99)","273-20-CONATEL-99 (17-Ago-99)","*","*","*","*","*","*"]
[2000,"055-04-CONATEL-2000 (21-Mar-00)","055-04-CONATEL-2000 (21-Mar-00)","*","*","*","*","*","*"]
[2001,"123-04-CONATEL-2001 (16-Mar-01)","123-04-CONATEL-2001 (16-Mar-01)","*","*","*","*","*","*"]
[2002,"004-01-CONATEL-2002 (10-Ene-02)","004-01-CONATEL-2002 (10-Ene-02)","*","*","*","*","*","*"]
[2003,"05-04-CONATEL-2003 (11-Feb-03)","06-04-CONATEL-2003 (11-Feb-03)          \n723-29-CONATEL-2003 (2-Dic-03) Modificación","*","*","*","*","*","*"]
[2004,"095-06-CONATEL-2004 (6-Abr-04)","096-06-CONATEL-2004 (6-Abr-04)","*","*","*","*","*","*"]
[2005,"04-01-CONATEL-2005 (11-Ene-05)","05-01-CONATEL-2005 (11-Ene-05)","74-02-CONATEL-2005 (25-Ene-05)","*","Obligación de instalar mínimo 50.000 líneas de central a nivel nacional dentro de los primeros 5 años (contados a partir del 13 junio de 2005)","Obligación de instalar mínimo 50.000 líneas de central a nivel nacional dentro de los primeros 5 años (contados a partir del 2 junio de 2005)","*","*"]
[2006,"273-11-CONATEL-2006 (25-Abr-06)","272-11-CONATEL-2006 (25-Abr-06)","460-19-CONATEL-2006 (17-Ago-06) Guayaquil\n672-33-CONATEL-2006 (14-Dic-06) Manta","Obligación de instalar mínimo 50.000 líneas de central a nivel nacional dentro de los primeros 5 años (contados a partir del 12 abril 2006)",null,null,"Obligación de instalar mínimo 5.000 líneas en el área concesionada (contados a partir del 26 de marzo de 2008)","*"]
[2007,"448-28-CONATEL-2007 (11-Oct-07)","041-04-CONATEL-2007 (9-Feb-07)   ","040-04-CONATEL-2007 (9-Feb-07)",null,null,null,null,"Obligación de instalar mínimo 5.000 líneas en el área concesionada (contados a partir del 5 de marzo de 2009)"]
[2008,"257-08-CONATEL-2008 (13-May-08)","258-08-CONATEL-2008 (13-May-08)","259-08-CONATEL-2008 (13-May-08)"]
[2009,"441-16-CONATEL-2009 (17-Dic-2009)",null,"161-06-CONATEL-2009 (20-Abr-09)"]
[2010,"TEL-557-18-CONATEL-2010 (24-Sep-2010)",null,"TEL-558-18-CONATEL-2010 (24-Sep-2010)"]
[2011,"TEL-005-01-CONATEL-2011 (14-Ene-2011)",null,"TEL-006-01-CONATEL-2011 (14-Ene-2011)","TEL-368-08-CONATEL-2011 (28-abril-2011)","TEL-007-01-CONATEL-2011 (14-Ene-2011)"]
[2012,"TEL-032-02-CONATEL-2012 (25-Ene-2012)",null,"TEL-034-02-CONATEL-2012 (25-Ene-2012)","TEL-036-02-CONATEL-2012 (25-Ene-2012)","TEL-035-02-CONATEL-2012 (25-Ene-2012)","TEL-033-02-CONATEL-2012 (25-Ene-2012)"]
[2013,"TEL-879-30-CONATEL-2012 (18-Dic-2012)",null,"TEL-881-30-CONATEL-2012 (18-Dic-2012)","TEL-882-30-CONATEL-2012 (18-Dic-2012)","TEL-883-30-CONATEL-2012 (18-Dic-2012)","TEL-880-30-CONATEL-2012 (18-Dic-2012)","TEL-884-30-CONATEL-2012 (18-Dic-2012)"]
[]
["Notas:"]
[]
["1. * Periodos en los cuales estas empresas no proveían servicio "]
["2. ** En los respectivos Contratos de Concesión se establecen los mecanismos de presentación, revisión y aprobación del Plan de Expansión de los servicios concedidos."]

{"sheet":"Definiciones","index":3,"n_rows":15,"n_cols":3,"rows_kept":15,"cut":false,"hidden":false,"merged":[[7,0,7,1]]}
[]
["      Servicio de Telefonía Fija"]
["        Plan de Expansión - Documentos","Definiciones de los parámetros de los Planes de Expansión"]
[]
[]
[]
[]
["      Fecha de publicación: noviembre de 2013"]
[]
[]
[]
["No.","PARÁMETRO","DEFINICIÓN"]
["1.","Instalación de Abonados ","Número de líneas nuevas instaladas por un operador en un determinado periodo de tiempo"]
["2.","Instalación de teléfonos públicos prepago","Número de teléfonos públicos instalados por un operador en un tiempo determinado"]
["3.","Instalación de cabinas públicas rurales","Número de poblaciones en las que un operador ha instalado cabinas públicas rurales, en un tiempo determinado."]

{"sheet":"Gráfico1","index":4,"n_rows":8,"n_cols":2,"rows_kept":8,"cut":false,"hidden":false,"merged":[]}
[]
[null,"      Servicio de Telefonía Fija"]
[null,"        Instalación Abonados CNT E. P. (ex ANDINATEL)"]
[]
[]
[]
[]
[null,"      Fecha de publicación: noviembre de 2013"]

{"sheet":"Gráfico2","index":5,"n_rows":8,"n_cols":2,"rows_kept":8,"cut":false,"hidden":false,"merged":[]}
[]
[null,"      Servicio de Telefonía Fija"]
[null,"        Instalación Abonados CNT E. P. (ex PACIFICTEL)"]
[]
[]
[]
[]
[null,"      Fecha de publicación: noviembre de 2013"]

{"sheet":"Gráfico3","index":6,"n_rows":8,"n_cols":2,"rows_kept":8,"cut":false,"hidden":false,"merged":[]}
[]
[null,"      Servicio de Telefonía Fija"]
[null,"        Instalación Abonados CNT E. P."]
[]
[]
[]
[]
[null,"      Fecha de publicación: noviembre de 2013"]

{"sheet":"Gráfico4","index":7,"n_rows":8,"n_cols":2,"rows_kept":8,"cut":false,"hidden":false,"merged":[]}
[]
[null,"      Servicio de Telefonía Fija"]
[null,"        Instalación Abonados LINKOTEL S.A."]
[]
[]
[]
[]
[null,"      Fecha de publicación: noviembre de 2013"]

{"sheet":"Gráfico5","index":8,"n_rows":8,"n_cols":2,"rows_kept":8,"cut":false,"hidden":false,"merged":[]}
[]
[null,"      Servicio de Telefonía Fija"]
[null,"        Instalación Abonados Operadoras Fijas"]
[]
[]
[]
[]
[null,"      Fecha de publicación: noviembre de 2013"]

{"sheet":"Gráfico6","index":9,"n_rows":8,"n_cols":2,"rows_kept":8,"cut":false,"hidden":false,"merged":[]}
[]
[null,"      Servicio de Telefonía Fija"]
[null,"        Instalación Abonados  - Grado Crecimiento"]
[]
[]
[]
[]
[null,"      Fecha de publicación: noviembre de 2013"]

{"sheet":"1.Abonados","index":10,"n_rows":8,"n_cols":2,"rows_kept":8,"cut":false,"hidden":false,"merged":[]}
[]
[null,"      Servicio de Telefonía Fija"]
[null,"        Instalación Abonados  - Comparativo entre operadores"]
[]
[]
[]
[]
[null,"      Fecha de publicación: noviembre de 2013"]

{"sheet":"Gráfico1 TPP","index":11,"n_rows":8,"n_cols":2,"rows_kept":8,"cut":false,"hidden":false,"merged":[]}
[]
[null,"      Servicio de Telefonía Fija"]
[null,"        Instalación de Teléfonos Públicos de Prepago CNT E.P. (ex-Andinatel)"]
[]
[]
[]
[]
[null,"      Fecha de publicación: noviembre de 2013"]

{"sheet":"Gráfico2 TTP","index":12,"n_rows":8,"n_cols":2,"rows_kept":8,"cut":false,"hidden":false,"merged":[]}
[]
[null,"      Servicio de Telefonía Fija"]
[null,"        Instalación de Teléfonos Públicos de Prepago CNT E.P. (ex-Pacifictel)"]
[]
[]
[]
[]
[null,"      Fecha de publicación: noviembre de 2013"]

{"sheet":"Gráfico3 TPP","index":13,"n_rows":8,"n_cols":2,"rows_kept":8,"cut":false,"hidden":false,"merged":[]}
[]
[null,"      Servicio de Telefonía Fija"]
[null,"        Instalación de Teléfonos Públicos de Prepago CNT E.P."]
[]
[]
[]
[]
[null,"      Fecha de publicación: noviembre de 2013"]

{"sheet":"Gráfico4 TPP","index":14,"n_rows":8,"n_cols":2,"rows_kept":8,"cut":false,"hidden":false,"merged":[]}
[]
[null,"      Servicio de Telefonía Fija"]
[null,"        Instalación de Teléfonos Públicos de Prepago LINKOTEL S.A."]
[]
[]
[]
[]
[null,"      Fecha de publicación: noviembre de 2013"]

{"sheet":"Gráfico5 TPP","index":15,"n_rows":8,"n_cols":2,"rows_kept":8,"cut":false,"hidden":false,"merged":[]}
[]
[null,"      Servicio de Telefonía Fija"]
[null,"        Instalación Total de Teléfonos Públicos de Prepago"]
[]
[]
[]
[]
[null,"      Fecha de publicación: noviembre de 2013"]

{"sheet":"Gráfico6 TPP","index":16,"n_rows":8,"n_cols":2,"rows_kept":8,"cut":false,"hidden":false,"merged":[]}
[]
[null,"      Servicio de Telefonía Fija"]
[null,"        Instalación de Teléfonos Públicos de Prepago - Grado Crecimiento"]
[]
[]
[]
[]
[null,"      Fecha de publicación: noviembre de 2013"]

{"sheet":"2.TelPubpre","index":17,"n_rows":8,"n_cols":2,"rows_kept":8,"cut":false,"hidden":false,"merged":[]}
[]
[null,"      Servicio de Telefonía Fija"]
[null,"        Instalación Teléfonos Público Prepago - Comparativo entre operadores"]
[]
[]
[]
[]
[null,"      Fecha de publicación: noviembre de 2013"]

{"sheet":"Gráfico1 CPR","index":18,"n_rows":8,"n_cols":2,"rows_kept":8,"cut":false,"hidden":false,"merged":[]}
[]
[null,"      Servicio de Telefonía Fija"]
[null,"       Instalación de Cabinas Públicas Rurales CNT E.P. (ex-Andinatel)"]
[]
[]
[]
[]
[null,"      Fecha de publicación: noviembre de 2013"]

{"sheet":"Gráfico2 CPR","index":19,"n_rows":8,"n_cols":2,"rows_kept":8,"cut":false,"hidden":false,"merged":[]}
[]
[null,"      Servicio de Telefonía Fija"]
[null,"       Instalación  de Cabinas Públicas Rurales CNT E.P. (ex-Pacifictel)"]
[]
[]
[]
[]
[null,"      Fecha de publicación: noviembre de 2013"]

{"sheet":"Gráfico3 CPR","index":20,"n_rows":8,"n_cols":2,"rows_kept":8,"cut":false,"hidden":false,"merged":[]}
[]
[null,"      Servicio de Telefonía Fija"]
[null,"       Instalación de Cabinas Públicas Rurales LINKOTEL S.A."]
[]
[]
[]
[]
[null,"      Fecha de publicación: noviembre de 2013"]

{"sheet":"Gráfico4 CPR","index":21,"n_rows":8,"n_cols":2,"rows_kept":8,"cut":false,"hidden":false,"merged":[]}
[]
[null,"      Servicio de Telefonía Fija"]
[null,"       Instalación Total de Cabinas Públicas Rurales"]
[]
[]
[]
[]
[null,"      Fecha de publicación: noviembre de 2013"]

{"sheet":"Gráfico5 CPR","index":22,"n_rows":8,"n_cols":2,"rows_kept":8,"cut":false,"hidden":false,"merged":[]}
[]
[null,"      Servicio de Telefonía Fija"]
[null,"       Instalación de Cabinas Públicas Rurales  - Grado Crecimiento"]
[]
[]
[]
[]
[null,"      Fecha de publicación: noviembre de 2013"]

{"sheet":"3. CabpurRur","index":23,"n_rows":8,"n_cols":2,"rows_kept":8,"cut":false,"hidden":false,"merged":[]}
[]
[null,"      Servicio de Telefonía Fija"]
[null,"       Instalación Cabinas Públicas Rurales - Comparativo entre operadores"]
[]
[]
[]
[]
[null,"      Fecha de publicación: noviembre de 2013"]